lending/lending_fUSD_20240219
["ID","MTS","AMOUNT","RATE_DAILY","PERIOD"]
[314493909,1708377054381,-158.595725,0.00045144,30]
[314493910,1708377054390,-152.46006,0.00045144,30]
[314493911,1708377054399,-574.99,0.00045149,2]
[314493912,1708377054408,-197.0212088,0.00045198,42]
[314493913,1708377054418,-212.79413244,0.000452,2]
[314493914,1708377054427,-2000.0,0.000452,2]
[314493915,1708377054437,-1000.0,0.000452,2]
[314493916,1708377054449,-500.0,0.00045205,10]
[314493917,1708377054458,-197.0212088,0.00045298,36]
[314493918,1708377054469,-159.506277,0.00045329,60]
[314493919,1708377054478,-160.37213762,0.00045329,60]
[314493920,1708377054489,-152.0,0.0004535,6]
[314493921,1708377054498,-197.0212088,0.00045398,37]
[314493922,1708377054507,-1448.17252855,0.00045416,5]
[314493923,1708377054517,-150.0,0.00045422,2]
[314493924,1708377054528,-800.0,0.00045479,2]
[314493925,1708377054537,-177.53,0.0004548,2]
[314493926,1708377054546,-197.0212088,0.00045498,42]
[314493927,1708377054556,-25341.07,0.000455,7]
[314493928,1708377054566,-206.0,0.0004554,27]
[314493929,1708377054586,-604.0,0.00045545,7]
[314493930,1708377054598,-1083.59,0.000456,7]
[314493931,1708377054607,-80365.82,0.000456,7]
[314493932,1708377054617,-152.98,0.000456,5]
[314493933,1708377054626,-152.98,0.000456,5]
[314493934,1708377054636,-152.98,0.000456,5]
[314493935,1708377054645,-152.98,0.000456,5]
[314493936,1708377054655,-152.98,0.000456,5]
[314493937,1708377054664,-152.98,0.000456,5]
[314493938,1708377054674,-1310.77,0.000456,5]
[314493939,1708377054683,-1310.77,0.000456,5]
[314493940,1708377054693,-1310.77,0.000456,5]
[314493941,1708377054702,-1310.77,0.000456,5]
[314493942,1708377054712,-1310.77,0.000456,5]
[314493943,1708377054722,-1310.77,0.000456,5]
[314493944,1708377054731,-1310.77,0.000456,5]
[314493945,1708377054741,-1310.77,0.000456,5]
[314493946,1708377054750,-1310.77,0.000456,5]
[314493947,1708377054760,-1310.77,0.000456,5]
[314493948,1708377054769,-1310.77,0.000456,5]
[314493949,1708377054779,-1310.77,0.000456,5]
[314493950,1708377054788,-1310.77,0.000456,5]
[314493951,1708377054798,-1310.77,0.000456,5]
[314493952,1708377054807,-1310.77,0.000456,5]
[314493953,1708377054817,-1310.77,0.000456,5]
[314493954,1708377054826,-1310.77,0.000456,5]
[314493955,1708377054836,-1310.77,0.000456,5]
[314493956,1708377054845,-1310.77,0.000456,5]
[314493957,1708377054854,-1310.77,0.000456,5]
[314493958,1708377054863,-153.13804571,0.00045737,28]
[314493959,1708377054873,-197.0212088,0.00045798,42]
[314493960,1708377054883,-36191.41,0.000458,7]
[314493961,1708377054893,-836.47,0.00045828,15]
[314493962,1708377054902,-1000.0,0.00045855,4]
[314493963,1708377054912,-205.71425931,0.0004589,21]
[314493964,1708377054921,-150.0,0.00045894,30]
[314493965,1708377054930,-1005.7437993,0.00045912,10]
[314493966,1708377055214,-461417.85,0.00046,5]
[314493967,1708377055228,-200.0,0.00046,21]
[314493968,1708377055238,-156.24639229,0.00046024,30]
[314493969,1708377055248,-177.53,0.00046028,2]
[314493970,1708377055257,-150.0,0.00046093,10]
[314493971,1708377055268,-152.51359009,0.00046148,30]
[314493972,1708377055278,-1556.72770277,0.00046181,10]
[314493973,1708377055287,-4100.0,0.00046185,2]
[314493974,1708377055297,-8171.0,0.00046185,2]
[314493975,1708377055306,-2292.0,0.00046185,2]
[314493976,1708377055315,-1038.0,0.00046185,2]
[314493977,1708377055326,-197.0212088,0.00046198,43]
[314493978,1708377055335,-166.94050384,0.000462,30]
[314493979,1708377055345,-177.82266228,0.00046239,30]
[314493980,1708377055354,-5056.41633167,0.00046249,20]
[314493981,1708377055363,-161.25919619,0.0004625,30]
[314493982,1708377055373,-197.0212088,0.00046298,37]
[314493983,1708377055382,-800.0,0.00046301,2]
[314493984,1708377055392,-166.99392,0.0004631,4]
[314493985,1708377055401,-150.0,0.00046329,60]
[314493986,1708377055410,-150.0,0.00046329,60]
[314493987,1708377055419,-156.62887964,0.00046395,30]
[314493988,1708377055430,-197.0212088,0.00046398,38]
[314493989,1708377055440,-156.89813651,0.00046427,30]
[314493990,1708377055452,-150.0,0.00046431,2]
[314493991,1708377055461,-727.89,0.0004644,2]
[314493992,1708377055470,-361.9612,0.00046475,2]
[314493993,1708377055480,-218.74649041,0.00046481,30]
[314493994,1708377055489,-197.0212088,0.00046498,43]
[314493995,1708377055499,-5011.76,0.000465,2]
[314493996,1708377055509,-156.62887964,0.0004651,30]
[314493997,1708377055518,-152.46006,0.00046512,30]
[314493998,1708377055529,-2457.37959946,0.00046573,5]
[314493999,1708377055540,-206.0,0.00046573,29]
[314494000,1708377055549,-382.42018135,0.00046575,30]
[314494001,1708377055559,-310.48537464,0.00046575,30]
[314494002,1708377055568,-225.21912207,0.00046575,30]
[314494003,1708377055577,-500.0,0.00046575,30]
[314494004,1708377055586,-500.0,0.00046575,30]
[314494005,1708377055596,-500.0,0.00046575,30]
[314494006,1708377055605,-151.28056287,0.00046575,30]
[314494007,1708377055614,-500.0,0.00046575,30]
[314494008,1708377055623,-500.0,0.00046575,30]
[314494009,1708377055633,-500.0,0.00046575,30]
[314494010,1708377055643,-500.0,0.00046575,30]
[314494011,1708377055652,-500.0,0.00046575,30]
[314494012,1708377055661,-500.0,0.00046575,30]
[314494013,1708377055670,-151.0,0.00046575,14]
[314494014,1708377055679,-500.0,0.00046575,30]
[314494015,1708377055689,-500.0,0.00046575,30]
[314494016,1708377055702,-500.0,0.00046575,30]
[314494017,1708377055717,-500.0,0.00046575,30]
[314494018,1708377055738,-500.0,0.00046575,30]
[314494019,1708377055750,-500.0,0.00046575,30]
[314494020,1708377055760,-292.09203214,0.00046575,30]
[314494021,1708377055770,-500.0,0.00046575,30]
[314494022,1708377055780,-536.64,0.00046575,30]
[314494023,1708377055789,-500.0,0.00046575,30]
[314494024,1708377055799,-500.0,0.00046575,30]
[314494025,1708377055808,-500.0,0.00046575,30]
[314494026,1708377055818,-500.0,0.00046575,30]
[314494027,1708377055827,-500.0,0.00046575,30]
[314494028,1708377055837,-500.0,0.00046575,30]
[314494029,1708377055846,-500.0,0.00046575,30]
[314494030,1708377055855,-1000.0,0.00046575,30]
[314494031,1708377055865,-500.0,0.00046575,30]
[314494032,1708377055874,-500.0,0.00046575,30]
[314494033,1708377055883,-602.01,0.00046575,30]
[314494034,1708377055892,-500.0,0.00046575,30]
[314494035,1708377055902,-500.0,0.00046575,30]
[314494036,1708377055912,-500.0,0.00046575,30]
[314494037,1708377055921,-500.0,0.00046575,30]
[314494038,1708377055931,-500.0,0.00046575,30]
[314494039,1708377055940,-500.0,0.00046575,30]
[314494040,1708377055950,-500.0,0.00046575,30]
[314494041,1708377055959,-512.36,0.00046575,30]
[314494042,1708377055968,-732.56,0.00046575,30]
[314494043,1708377055977,-500.0,0.00046575,30]
[314494044,1708377055987,-500.0,0.00046575,30]
[314494045,1708377055996,-500.0,0.00046575,30]
[314494046,1708377056005,-500.0,0.00046575,30]
[314494047,1708377056016,-500.0,0.00046575,30]
[314494048,1708377056026,-500.0,0.00046575,30]
[314494049,1708377056036,-500.0,0.00046575,30]
[314494050,1708377056046,-500.0,0.00046575,30]
[314494051,1708377056056,-573.89,0.00046575,30]
[314494052,1708377056065,-500.0,0.00046575,30]
[314494053,1708377056074,-500.0,0.00046575,30]
[314494054,1708377056083,-500.0,0.00046575,30]
[314494055,1708377056093,-500.0,0.00046575,30]
[314494056,1708377056102,-205.67446718,0.00046575,30]
[314494057,1708377056111,-500.0,0.00046575,30]
[314494058,1708377056120,-606.28,0.00046575,30]
[314494059,1708377056130,-500.0,0.00046575,30]
[314494060,1708377056139,-500.0,0.00046575,30]
[314494061,1708377056148,-1049.77,0.00046575,30]
[314494062,1708377056157,-500.0,0.00046575,30]
[314494063,1708377056167,-500.0,0.00046575,30]
[314494064,1708377056177,-500.0,0.00046575,30]
[314494065,1708377056186,-500.0,0.00046575,30]
[314494066,1708377056195,-357.36577316,0.00046575,30]
[314494067,1708377056204,-500.0,0.00046575,30]
[314494068,1708377056214,-500.0,0.00046575,30]
[314494069,1708377056223,-500.0,0.00046575,30]
[314494070,1708377056232,-500.0,0.00046575,30]
[314494071,1708377056241,-500.0,0.00046575,30]
[314494072,1708377056250,-151.0,0.00046575,14]
[314494073,1708377056260,-193.695646,0.00046575,14]
[314494074,1708377056270,-500.0,0.00046575,30]
[314494075,1708377056279,-500.0,0.00046575,30]
[314494076,1708377056288,-500.0,0.00046575,30]
[314494077,1708377056297,-500.0,0.00046575,30]
[314494078,1708377056307,-500.0,0.00046575,30]
[314494079,1708377056316,-500.0,0.00046575,30]
[314494080,1708377056325,-500.0,0.00046575,30]
[314494081,1708377056335,-500.0,0.00046575,30]
[314494082,1708377056344,-500.0,0.00046575,30]
[314494083,1708377056353,-544.97,0.00046575,30]
[314494084,1708377056362,-500.0,0.00046575,30]
[314494085,1708377056371,-500.0,0.00046575,30]
[314494086,1708377056381,-500.0,0.00046575,30]
[314494087,1708377056391,-500.0,0.00046575,30]
[314494088,1708377056400,-500.0,0.00046575,30]
[314494089,1708377056410,-194.76844516,0.00046575,30]
[314494090,1708377056419,-500.0,0.00046575,30]
[314494091,1708377056429,-500.0,0.00046575,30]
[314494092,1708377056439,-500.0,0.00046575,30]
[314494093,1708377056451,-500.0,0.00046575,30]
[314494094,1708377056460,-500.0,0.00046575,30]
[314494095,1708377056470,-500.0,0.00046575,30]
[314494096,1708377056480,-500.0,0.00046575,30]
[314494097,1708377056491,-500.0,0.00046575,7]
[314494098,1708377056501,-500.0,0.00046575,30]
[314494099,1708377056511,-151.0,0.00046575,14]
[314494100,1708377056520,-500.0,0.00046575,30]
[314494101,1708377056532,-500.0,0.00046575,30]
[314494102,1708377056542,-500.0,0.00046575,30]
[314494103,1708377056551,-500.0,0.00046575,30]
[314494104,1708377056561,-500.0,0.00046575,30]
[314494105,1708377056571,-500.0,0.00046575,30]
[314494106,1708377056581,-500.0,0.00046575,30]
[314494107,1708377056591,-500.0,0.00046575,30]
[314494108,1708377056601,-500.0,0.00046575,30]
[314494109,1708377056610,-500.0,0.00046575,30]
[314494110,1708377056620,-500.0,0.00046575,30]
[314494111,1708377056629,-500.0,0.00046575,30]
[314494112,1708377056639,-500.0,0.00046575,30]
[314494113,1708377056649,-500.0,0.00046575,30]
[314494114,1708377056658,-500.0,0.00046575,30]
[314494115,1708377056668,-500.0,0.00046575,30]
[314494116,1708377056678,-500.0,0.00046575,30]
[314494117,1708377056688,-500.0,0.00046575,30]
[314494118,1708377056698,-500.0,0.00046575,30]
[314494119,1708377056707,-500.0,0.00046575,30]
[314494120,1708377056717,-500.0,0.00046575,30]
[314494121,1708377056726,-500.0,0.00046575,30]
[314494122,1708377056736,-500.0,0.00046575,30]
[314494123,1708377056746,-500.0,0.00046575,30]
[314494124,1708377056756,-500.0,0.00046575,30]
[314494125,1708377056767,-500.0,0.00046575,30]
[314494126,1708377056777,-500.0,0.00046575,30]
[314494127,1708377056786,-505.06,0.00046575,30]
[314494128,1708377056796,-500.0,0.00046575,30]
[314494129,1708377056805,-500.0,0.00046575,30]
[314494130,1708377056814,-500.0,0.00046575,30]
[314494131,1708377056824,-501.58455004,0.00046575,30]
[314494132,1708377056834,-1141.6,0.00046575,30]
[314494133,1708377056843,-500.0,0.00046575,30]
[314494134,1708377056853,-500.0,0.00046575,30]
[314494135,1708377056862,-500.0,0.00046575,30]
[314494136,1708377056871,-500.0,0.00046575,30]
[314494137,1708377056880,-519.95956206,0.00046575,30]
[314494138,1708377056890,-500.0,0.00046575,30]
[314494139,1708377056900,-500.0,0.00046575,30]
[314494140,1708377056910,-503.41661034,0.00046575,30]
[314494141,1708377056919,-500.0,0.00046575,30]
[314494142,1708377056929,-500.0,0.00046575,30]
[314494143,1708377056939,-500.0,0.00046575,30]
[314494144,1708377056949,-151.0,0.00046575,14]
[314494145,1708377056959,-506.9105983,0.00046575,30]
[314494146,1708377056968,-500.0,0.00046575,30]
[314494147,1708377056978,-567.74,0.00046575,30]
[314494148,1708377056987,-777.32,0.00046575,2]
[314494149,1708377056997,-500.0,0.00046575,30]
[314494150,1708377057007,-503.6,0.00046575,30]
[314494151,1708377057018,-500.0,0.00046575,30]
[314494152,1708377057027,-500.0,0.00046575,30]
[314494153,1708377057038,-500.0,0.00046575,30]
[314494154,1708377057048,-500.0,0.00046575,30]
[314494155,1708377057058,-500.0,0.00046575,30]
[314494156,1708377057067,-500.0,0.00046575,30]
[314494157,1708377057077,-500.0,0.00046575,30]
[314494158,1708377057086,-512.59162499,0.00046575,30]
[314494159,1708377057096,-500.0,0.00046575,30]
[314494160,1708377057105,-500.0,0.00046575,30]
[314494161,1708377057114,-500.0,0.00046575,30]
[314494162,1708377057123,-603.14,0.00046575,30]
[314494163,1708377057132,-500.0,0.00046575,30]
[314494164,1708377057142,-500.0,0.00046575,30]
[314494165,1708377057151,-238.04,0.00046575,30]
[314494166,1708377057161,-500.0,0.00046575,30]
[314494167,1708377057171,-500.0,0.00046575,2]
[314494168,1708377057180,-500.0,0.00046575,30]
[314494169,1708377057189,-500.0,0.00046575,2]
[314494170,1708377057199,-500.0,0.00046575,30]
[314494171,1708377057208,-500.0,0.00046575,30]
[314494172,1708377057217,-500.0,0.00046575,30]
[314494173,1708377057227,-500.0,0.00046575,30]
[314494174,1708377057237,-500.0,0.00046575,30]
[314494175,1708377057246,-500.0,0.00046575,30]
[314494176,1708377057255,-500.0,0.00046575,30]
[314494177,1708377057266,-500.0,0.00046575,30]
[314494178,1708377057275,-508.55977123,0.00046575,30]
[314494179,1708377057285,-750.4,0.00046575,30]
[314494180,1708377057294,-500.0,0.00046575,30]
[314494181,1708377057303,-599.04,0.00046575,30]
[314494182,1708377057312,-151.0,0.00046575,14]
[314494183,1708377057322,-500.0,0.00046575,30]
[314494184,1708377057331,-500.0,0.00046575,30]
[314494185,1708377057340,-500.0,0.00046575,30]
[314494186,1708377057349,-151.0,0.00046575,14]
[314494187,1708377057359,-500.0,0.00046575,30]
[314494188,1708377057368,-500.0,0.00046575,30]
[314494189,1708377057377,-500.0,0.00046575,30]
[314494190,1708377057386,-500.0,0.00046575,30]
[314494191,1708377057396,-500.0,0.00046575,30]
[314494192,1708377057405,-500.0,0.00046575,30]
[314494193,1708377057414,-500.0,0.00046575,30]
[314494194,1708377057423,-500.0,0.00046575,30]
[314494195,1708377057432,-500.0,0.00046575,30]
[314494196,1708377057442,-500.0,0.00046575,30]
[314494197,1708377057454,-500.0,0.00046575,30]
[314494198,1708377057463,-500.0,0.00046575,30]
[314494199,1708377057473,-690.28,0.00046575,30]
[314494200,1708377057482,-500.0,0.00046575,30]
[314494201,1708377057492,-500.0,0.00046575,30]
[314494202,1708377057501,-784.44,0.00046575,30]
[314494203,1708377057511,-500.0,0.00046575,30]
[314494204,1708377057521,-500.0,0.00046575,30]
[314494205,1708377057532,-500.0,0.00046575,30]
[314494206,1708377057541,-151.0,0.00046575,14]
[314494207,1708377057550,-500.0,0.00046575,30]
[314494208,1708377057560,-500.0,0.00046575,30]
[314494209,1708377057643,-500.0,0.00046575,30]
[314494210,1708377057653,-235.880964,0.00046575,14]
[314494211,1708377057662,-434.11,0.00046575,30]
[314494212,1708377057672,-500.0,0.00046575,30]
[314494213,1708377057681,-151.0,0.00046575,7]
[314494214,1708377057690,-533.46,0.00046575,30]
[314494215,1708377057699,-624.05066731,0.00046575,30]
[314494216,1708377057709,-155.810692,0.00046575,14]
[314494217,1708377057718,-500.0,0.00046575,30]
[314494218,1708377057727,-167.0,0.00046575,30]
[314494219,1708377057737,-500.0,0.00046575,30]
[314494220,1708377057746,-712.44,0.00046575,30]
[314494221,1708377057756,-568.95,0.00046575,30]
[314494222,1708377057766,-155.810692,0.00046575,14]
[314494223,1708377057775,-516.80344641,0.00046575,30]
[314494224,1708377057784,-543.64,0.00046575,30]
[314494225,1708377057793,-500.0,0.00046575,30]
[314494226,1708377057803,-500.0,0.00046575,30]
[314494227,1708377057812,-500.0,0.00046575,30]
[314494228,1708377057822,-513.43,0.00046575,30]
[314494229,1708377057832,-366.56287328,0.00046575,30]
[314494230,1708377057841,-500.0,0.00046575,30]
[314494231,1708377057850,-553.18724582,0.00046575,30]
[314494232,1708377057859,-500.0,0.00046575,30]
[314494233,1708377057868,-500.0,0.00046575,30]
[314494234,1708377057878,-1175.74,0.00046575,30]
[314494235,1708377057887,-500.0,0.00046575,30]
[314494236,1708377057896,-500.0,0.00046575,30]
[314494237,1708377057905,-500.0,0.00046575,30]
[314494238,1708377057914,-500.0,0.00046575,30]
[314494239,1708377057923,-500.0,0.00046575,30]
[314494240,1708377057933,-516.52533527,0.00046575,30]
[314494241,1708377057942,-500.0,0.00046575,30]
[314494242,1708377057951,-500.0,0.00046575,30]
[314494243,1708377057960,-524.94215465,0.00046575,30]
[314494244,1708377057969,-500.0,0.00046575,30]
[314494245,1708377057979,-500.0,0.00046575,30]
[314494246,1708377057988,-500.0,0.00046575,30]
[314494247,1708377057997,-500.0,0.00046575,30]
[314494248,1708377058006,-500.0,0.00046575,30]
[314494249,1708377058016,-500.0,0.00046575,30]
[314494250,1708377058025,-428.96218,0.00046575,14]
[314494251,1708377058034,-500.0,0.00046575,30]
[314494252,1708377058043,-500.0,0.00046575,30]
[314494253,1708377058052,-500.0,0.00046575,30]
[314494254,1708377058062,-500.0,0.00046575,30]
[314494255,1708377058071,-500.0,0.00046575,30]
[314494256,1708377058080,-428.96218,0.00046575,14]
[314494257,1708377058089,-500.0,0.00046575,30]
[314494258,1708377058097,-523.21,0.00046575,30]
[314494259,1708377058106,-500.0,0.00046575,30]
[314494260,1708377058115,-521.63,0.00046575,30]
[314494261,1708377058124,-500.0,0.00046575,30]
[314494262,1708377058133,-500.0,0.00046575,30]
[314494263,1708377058142,-500.0,0.00046575,30]
[314494264,1708377058151,-500.0,0.00046575,30]
[314494265,1708377058160,-500.0,0.00046575,30]
[314494266,1708377058169,-500.0,0.00046575,30]
[314494267,1708377058178,-500.0,0.00046575,30]
[314494268,1708377058187,-512.54532977,0.00046575,30]
[314494269,1708377058197,-513.88,0.00046575,30]
[314494270,1708377058206,-500.0,0.00046575,30]
[314494271,1708377058215,-500.0,0.00046575,30]
[314494272,1708377058224,-500.0,0.00046575,30]
[314494273,1708377058233,-500.0,0.00046575,30]
[314494274,1708377058242,-500.0,0.00046575,30]
[314494275,1708377058252,-632.17,0.00046575,30]
[314494276,1708377058261,-500.0,0.00046575,30]
[314494277,1708377058271,-500.0,0.00046575,30]
[314494278,1708377058280,-500.0,0.00046575,2]
[314494279,1708377058289,-500.0,0.00046575,30]
[314494280,1708377058298,-500.0,0.00046575,30]
[314494281,1708377058307,-265.771805,0.00046575,14]
[314494282,1708377058317,-500.0,0.00046575,30]
[314494283,1708377058326,-500.0,0.00046575,30]
[314494284,1708377058335,-500.0,0.00046575,30]
[314494285,1708377058345,-477.58775845,0.00046575,30]
[314494286,1708377058354,-500.0,0.00046575,30]
[314494287,1708377058363,-265.771805,0.00046575,14]
[314494288,1708377058372,-500.0,0.00046575,30]
[314494289,1708377058382,-500.0,0.00046575,30]
[314494290,1708377058391,-660.98,0.00046575,30]
[314494291,1708377058400,-500.0,0.00046575,30]
[314494292,1708377058409,-500.0,0.00046575,30]
[314494293,1708377058419,-500.0,0.00046575,20]
[314494294,1708377058428,-500.0,0.00046575,30]
[314494295,1708377058437,-301.0736718,0.00046575,30]
[314494296,1708377058447,-500.0,0.00046575,30]
[314494297,1708377058457,-500.0,0.00046575,30]
[314494298,1708377058468,-500.0,0.00046575,30]
[314494299,1708377058478,-151.0,0.00046575,14]
[314494300,1708377058487,-500.0,0.00046575,30]
[314494301,1708377058496,-500.0,0.00046575,30]
[314494302,1708377058505,-500.0,0.00046575,30]
[314494303,1708377058515,-500.0,0.00046575,30]
[314494304,1708377058525,-588.08,0.00046575,30]
[314494305,1708377058535,-511.02397488,0.00046575,30]
[314494306,1708377058550,-500.0,0.00046575,30]
[314494307,1708377058565,-255.829658,0.00046575,14]
[314494308,1708377058577,-500.0,0.00046575,30]
[314494309,1708377058591,-500.0,0.00046575,30]
[314494310,1708377058604,-500.0,0.00046575,30]
[314494311,1708377058613,-500.0,0.00046575,30]
[314494312,1708377058623,-500.0,0.00046575,30]
[314494313,1708377058632,-500.0,0.00046575,30]
[314494314,1708377058641,-500.0,0.00046575,30]
[314494315,1708377058650,-500.0,0.00046575,30]
[314494316,1708377058659,-500.0,0.00046575,10]
[314494317,1708377058669,-500.0,0.00046575,30]
[314494318,1708377058678,-500.0,0.00046575,30]
[314494319,1708377058687,-597.62,0.00046575,30]
[314494320,1708377058696,-532.33936294,0.00046575,30]
[314494321,1708377058705,-611.78,0.00046575,30]
[314494322,1708377058715,-500.0,0.00046575,30]
[314494323,1708377058724,-555.82,0.00046575,30]
[314494324,1708377058733,-500.0,0.00046575,30]
[314494325,1708377058742,-151.0,0.00046575,14]
[314494326,1708377058751,-500.0,0.00046575,30]
[314494327,1708377058760,-500.0,0.00046575,30]
[314494328,1708377058770,-151.0,0.00046575,14]
[314494329,1708377058779,-577.998277,0.00046575,30]
[314494330,1708377058789,-500.0,0.00046575,2]
[314494331,1708377058798,-500.0,0.00046575,30]
[314494332,1708377058807,-500.0,0.00046575,30]
[314494333,1708377058817,-513.37588262,0.00046575,30]
[314494334,1708377058826,-500.0,0.00046575,30]
[314494335,1708377058835,-500.0,0.00046575,30]
[314494336,1708377058844,-500.0,0.00046575,30]
[314494337,1708377058854,-500.0,0.00046575,30]
[314494338,1708377058863,-500.0,0.00046575,30]
[314494339,1708377058873,-500.0,0.00046575,30]
[314494340,1708377058882,-500.0,0.00046575,30]
[314494341,1708377058892,-500.0,0.00046575,30]
[314494342,1708377058901,-500.0,0.00046575,30]
[314494343,1708377058911,-918.19,0.00046575,30]
[314494344,1708377058920,-500.0,0.00046575,30]
[314494345,1708377058930,-510.44883349,0.00046575,30]
[314494346,1708377058939,-578.31,0.00046575,30]
[314494347,1708377058949,-442.05812409,0.00046575,30]
[314494348,1708377058959,-500.0,0.00046575,30]
[314494349,1708377058968,-500.0,0.00046575,30]
[314494350,1708377058978,-510.05670732,0.00046575,30]
[314494351,1708377058987,-500.0,0.00046575,30]
[314494352,1708377058997,-500.0,0.00046575,30]
[314494353,1708377059006,-500.0,0.00046575,30]
[314494354,1708377059016,-500.0,0.00046575,30]
[314494355,1708377059025,-500.0,0.00046575,30]
[314494356,1708377059034,-500.0,0.00046575,30]
[314494357,1708377059044,-500.0,0.00046575,30]
[314494358,1708377059053,-646.405095,0.00046575,30]
[314494359,1708377059062,-500.0,0.00046575,30]
[314494360,1708377059071,-527.96,0.00046575,30]
[314494361,1708377059080,-500.0,0.00046575,30]
[314494362,1708377059089,-500.0,0.00046575,30]
[314494363,1708377059099,-500.0,0.00046575,30]
[314494364,1708377059109,-500.0,0.00046575,30]
[314494365,1708377059117,-500.0,0.00046575,30]
[314494366,1708377059126,-500.0,0.00046575,30]
[314494367,1708377059135,-500.0,0.00046575,30]
[314494368,1708377059144,-500.0,0.00046575,30]
[314494369,1708377059153,-500.0,0.00046575,30]
[314494370,1708377059163,-500.0,0.00046575,30]
[314494371,1708377059171,-500.0,0.00046575,30]
[314494372,1708377059181,-500.0,0.00046575,30]
[314494373,1708377059190,-500.0,0.00046575,30]
[314494374,1708377059199,-500.0,0.00046575,30]
[314494375,1708377059209,-500.0,0.00046575,30]
[314494376,1708377059218,-500.0,0.00046575,30]
[314494377,1708377059227,-619.91430231,0.00046575,30]
[314494378,1708377059236,-553.98,0.00046575,30]
[314494379,1708377059245,-180.226859,0.00046575,14]
[314494380,1708377059255,-500.0,0.00046575,30]
[314494381,1708377059266,-500.0,0.00046575,30]
[314494382,1708377059275,-500.0,0.00046575,30]
[314494383,1708377059284,-180.226859,0.00046575,14]
[314494384,1708377059294,-500.0,0.00046575,30]
[314494385,1708377059303,-500.0,0.00046575,2]
[314494386,1708377059312,-500.0,0.00046575,30]
[314494387,1708377059321,-500.0,0.00046575,30]
[314494388,1708377059330,-529.69,0.00046575,30]
[314494389,1708377059339,-500.0,0.00046575,30]
[314494390,1708377059348,-485.29278458,0.00046575,30]
[314494391,1708377059357,-500.0,0.00046575,30]
[314494392,1708377059366,-500.0,0.00046575,30]
[314494393,1708377059375,-500.0,0.00046575,30]
[314494394,1708377059385,-500.0,0.00046575,30]
[314494395,1708377059394,-500.0,0.00046575,30]
[314494396,1708377059403,-556.74,0.00046575,30]
[314494397,1708377059412,-500.0,0.00046575,30]
[314494398,1708377059421,-500.0,0.00046575,30]
[314494399,1708377059430,-692.58,0.00046575,30]
[314494400,1708377059439,-500.0,0.00046575,30]
[314494401,1708377059451,-500.0,0.00046575,30]
[314494402,1708377059460,-552.5,0.00046575,30]
[314494403,1708377059470,-500.0,0.00046575,30]
[314494404,1708377059479,-220.433061,0.00046575,14]
[314494405,1708377059489,-500.0,0.00046575,30]
[314494406,1708377059498,-500.0,0.00046575,30]
[314494407,1708377059507,-220.433061,0.00046575,14]
[314494408,1708377059516,-500.0,0.00046575,30]